[Event "ISR-ch Youth 2019"]
[Site "Jerusalem"]
[Date "2019.04.12"]
[Round "3.10"]
[White "Fudim, Basya"]
[Black "Qasem, Huda"]
[Result "0-1"]
[ECO "D02"]
[WhiteElo "1380"]
[BlackElo "1664"]
[Annotator "NA RC"]
[PlyCount "77"]
[EventDate "2019.04.11"]
[EventType "swiss"]
[EventCountry "ISR"]
[SourceTitle "playchess.com"]
[Source "ChessBase"]
[SourceQuality "1"]
[TimeControl "5400+30"]

1. d4 {[%emt 0:00:00]} Nf6 {[%emt 0:00:00]} 2. Bf4 {[%emt 0:00:00]} e6 {[%emt 0:00:00]} 3. Nf3 {[%emt 0:00:00]} c5 {[%emt 0:00:00]} 4. c3 {[%emt 0:01:18]} d5 {[%emt 0:00:01]} 5. h3 {[%emt 0:01:48]} Bd6 {[%emt 0:00:41]} 6. Bg5 {[%emt 0:03:31]} h6 {[%emt 0:02:54]} 7. Bxf6 {[%emt 0:00:46]} Qxf6 {[%emt 0:00:09]} 8. e3 {[%emt 0:05:39]} O-O {[%emt 0:01:41]} 9. Be2 {[%emt 0:00:39]} Nc6 {[%emt 0:03:40]} 10. O-O {[%emt 0:01:33]} Rd8 {[%emt 0:01:57]} 11. Qc2 {[%emt 0:10:39]} e5 {[%emt 0:02:26]} 12. dxe5 {[%emt 0:00:07]} Nxe5 {[%emt 0:00:22]} 13. Nbd2 {[%emt 0:01:43]} b6 {[%emt 0:10:30]} 14. Rac1 {[%emt 0:04:13]} Bf5 {[%emt 0:01:23]} 15. e4 {[%emt 0:07:20]} dxe4 {[%emt 0:07:18]} 16. Nxe4 {[%emt 0:00:18]} Nxf3+ {[%emt 0:09:41]} 17. Bxf3 {[%emt 0:00:16]} Qe5 {[%emt 0:00:14]} 18. g3 {[%emt 0:09:06]} Rac8 {[%emt 0:13:38]} 19. Bg2 {[%emt 0:02:17]} Qe6 {[%emt 0:01:37]} 20. Kh2 {[%emt 0:04:12]} Bb8 {[%emt 0:06:16]} 21. Rce1 {[%emt 0:09:30]} Qg6 {[%emt 0:01:56]} 22. Qe2 {[%emt 0:00:49]} h5 {[%emt 0:01:27]} 23. Qf3 {[%emt 0:03:14]} Re8 {[%emt 0:03:19]} 24. Nd2 {[%emt 0:08:13]} Rcd8 {[%emt 0:02:50]} 25. Nb3 {[%emt 0:05:24]} Re6 {[%emt 0:04:26]} 26. Rxe6 {[%emt 0:01:45]} Bxe6 {[%emt 0:00:15]} 27. Rd1 {[%emt 0:01:16]} Rf8 {[%emt 0:01:41]} 28. Qe3 {[%emt 0:11:10]} Bf5 {[%emt 0:04:13]} 29. Nd2 {[%emt 0:01:24]} Rd8 {[%emt 0:01:52]} 30. Re1 {[%emt 0:02:48]} h4 {[%emt 0:03:03]} 31. Nc4 {[%emt 0:01:12]} hxg3+ {[%emt 0:03:20]} 32. fxg3 {[%emt 0:00:42]} Be6 {[%emt 0:01:30]} 33. Ne5 {[%emt 0:01:07]} Qf5 {[%emt 0:02:20]} 34. Qf3 {[%emt 0:01:46]} Qxf3 {[%emt 0:01:20]} 35. Nxf3 {[%emt 0:00:26]} Bxa2 {[%emt 0:00:53]} 36. Rf1 {[%emt 0:01:13]} Bc4 {[%emt 0:02:33]} 37. Re1 {[%emt 0:00:28]} f6 {[%emt 0:01:08]} 38. Ra1 {[%emt 0:00:34]} Be2 {[%emt 0:01:55]} 39. Ra3 {[%emt 0:01:04]} 0-1

[Event "ISR-ch Youth 2019"]
[Site "Jerusalem"]
[Date "2019.04.12"]
[Round "3.11"]
[White "Ken-Dror, Renana"]
[Black "Gadasi, Noam"]
[Result "*"]
[ECO "A36"]
[WhiteElo "1185"]
[BlackElo "1653"]
[Annotator "NA RC"]
[PlyCount "78"]
[EventDate "2019.04.11"]
[EventType "swiss"]
[EventCountry "ISR"]
[SourceTitle "playchess.com"]
[Source "ChessBase"]
[SourceQuality "1"]
[TimeControl "5400+30"]

1. e4 {[%emt 0:00:00]} c5 {[%emt 0:00:00]} 2. c4 {[%emt 0:00:00]} g6 {[%emt 0:02:38]} 3. Nc3 {[%emt 0:00:00]} Nc6 {[%emt 0:00:22]} 4. g3 {[%emt 0:00:17]} Bg7 {[%emt 0:00:53]} 5. Bg2 {[%emt 0:00:08]} Nf6 {[%emt 0:01:00]} 6. Nge2 {[%emt 0:00:14]} O-O {[%emt 0:01:24]} 7. O-O {[%emt 0:00:08]} d6 {[%emt 0:06:04]} 8. h3 {[%emt 0:00:36]} a6 {[%emt 0:02:51]} 9. d3 {[%emt 0:00:15]} Rb8 {[%emt 0:00:38]} 10. a4 {[%emt 0:01:34]} b6 {[%emt 0:04:58]} 11. Be3 {[%emt 0:00:15]} Bd7 {[%emt 0:02:25]} 12. Rb1 {[%emt 0:00:21]} Nb4 {[%emt 0:00:32]} 13. Ra1 {[%emt 0:00:56]} b5 {[%emt 0:01:48]} 14. axb5 {[%emt 0:02:53]} axb5 {[%emt 0:00:11]} 15. b3 {[%emt 0:00:39]} Qc7 {[%emt 0:07:29]} 16. Qd2 {[%emt 0:01:41]} Bc6 {[%emt 0:01:32]} 17. Bh6 {[%emt 0:01:03]} Bxh6 {[%emt 0:00:49]} 18. Qxh6 {[%emt 0:00:17]} Nxd3 {[%emt 0:00:06]} 19. Rfd1 {[%emt 0:01:31]} bxc4 {[%emt 0:00:35]} 20. bxc4 {[%emt 0:00:08]} Ne5 {[%emt 0:00:16]} 21. Nd5 {[%emt 0:02:14]} Nxd5 {[%emt 0:04:17]} 22. cxd5 {[%emt 0:00:33]} Bd7 {[%emt 0:00:50]} 23. Rac1 {[%emt 0:05:12]} Ba4 {[%emt 0:13:39]} 24. Rd2 {[%emt 0:00:47]} Qb6 {[%emt 0:02:24]} 25. Qe3 {[%emt 0:04:06]} Bb5 {[%emt 0:03:13]} 26. Rb2 {[%emt 0:01:33]} Qa6 {[%emt 0:00:22]} 27. Rbc2 {[%emt 0:01:36]} Bd3 {[%emt 0:04:15]} 28. Rd2 {[%emt 0:01:06]} c4 {[%emt 0:02:27]} 29. f4 {[%emt 0:01:19]} Nd7 {[%emt 0:01:19]} 30. Kh2 {[%emt 0:00:20]} Nc5 {[%emt 0:02:41]} 31. Rdd1 {[%emt 0:03:52]} Rb2 {[%emt 0:03:11]} 32. Rd2 {[%emt 0:01:28]} Rfb8 {[%emt 0:00:36]} 33. Nd4 {[%emt 0:00:35]} Qa2 {[%emt 0:02:40]} 34. Nf3 {[%emt 0:01:53]} Rxd2 {[%emt 0:03:27]} 35. Nxd2 {[%emt 0:01:00]} Rb2 {[%emt 0:00:22]} 36. Nf1 {[%emt 0:03:04]} Bxf1 {[%emt 0:00:48]} 37. Rxf1 {[%emt 0:00:07]} Rxg2+ {[%emt 0:00:16]} 38. Kh1 {[%emt 0:00:08]} Rh2+ {[%emt 0:00:08]} 39. Kg1 {[%emt 0:00:04]} Qg2# {[%emt 0:00:06]} *

[Event "ISR-ch Youth 2019"]
[Site "Jerusalem"]
[Date "2019.04.12"]
[Round "3.12"]
[White "Harel Raz, Eden"]
[Black "Moskovitch, Michal"]
[Result "0-1"]
[ECO "D02"]
[WhiteElo "1128"]
[BlackElo "1514"]
[Annotator "NA RC"]
[PlyCount "94"]
[EventDate "2019.04.11"]
[EventType "swiss"]
[EventCountry "ISR"]
[SourceTitle "playchess.com"]
[Source "ChessBase"]
[SourceQuality "1"]
[TimeControl "5400+30"]

1. d4 {[%emt 0:00:00]} d5 {[%emt 0:00:00]} 2. Nf3 {[%emt 0:00:00]} Nf6 {[%emt 0:00:00]} 3. Bf4 {[%emt 0:00:32]} Nc6 {[%emt 0:02:06]} 4. e3 {[%emt 0:00:13]} Bf5 {[%emt 0:01:13]} 5. c3 {[%emt 0:00:09]} e6 {[%emt 0:05:47]} 6. Be2 {[%emt 0:00:18]} Be7 {[%emt 0:02:02]} 7. h3 {[%emt 0:00:34]} h6 {[%emt 0:00:39]} 8. O-O {[%emt 0:00:18]} O-O {[%emt 0:00:42]} 9. Nbd2 {[%emt 0:00:42]} Re8 {[%emt 0:02:05]} 10. c4 {[%emt 0:00:19]} Rc8 {[%emt 0:07:38]} 11. Qb3 {[%emt 0:01:12]} Na5 {[%emt 0:07:11]} 12. Qc3 {[%emt 0:00:43]} c6 {[%emt 0:03:23]} 13. b4 {[%emt 0:01:02]} Nxc4 {[%emt 0:00:15]} 14. Bxc4 {[%emt 0:00:41]} dxc4 {[%emt 0:00:13]} 15. Nxc4 {[%emt 0:00:49]} Nd5 {[%emt 0:02:33]} 16. Qb3 {[%emt 0:00:32]} Nxf4 {[%emt 0:04:34]} 17. exf4 {[%emt 0:00:17]} Qc7 {[%emt 0:04:07]} 18. Rac1 {[%emt 0:01:17]} Qxf4 {[%emt 0:01:18]} 19. Rfd1 {[%emt 0:01:53]} Be4 {[%emt 0:02:09]} 20. Ncd2 {[%emt 0:01:05]} Bd5 {[%emt 0:00:52]} 21. Qa4 {[%emt 0:00:35]} Qb8 {[%emt 0:02:57]} 22. b5 {[%emt 0:00:54]} cxb5 {[%emt 0:01:30]} 23. Qxb5 {[%emt 0:00:48]} Bxa2 {[%emt 0:03:12]} 24. Rxc8 {[%emt 0:00:58]} Rxc8 {[%emt 0:00:19]} 25. Nb3 {[%emt 0:01:03]} Bxb3 {[%emt 0:00:42]} 26. Qxb3 {[%emt 0:00:11]} b5 {[%emt 0:02:54]} 27. d5 {[%emt 0:00:32]} exd5 {[%emt 0:00:44]} 28. Rxd5 {[%emt 0:00:38]} Rc1+ {[%emt 0:00:19]} 29. Rd1 {[%emt 0:00:17]} Rxd1+ {[%emt 0:00:09]} 30. Qxd1 {[%emt 0:00:13]} b4 {[%emt 0:00:50]} 31. Qb3 {[%emt 0:01:00]} a5 {[%emt 0:00:30]} 32. Nd2 {[%emt 0:00:45]} Qb5 {[%emt 0:00:59]} 33. Nc4 {[%emt 0:08:57]} a4 {[%emt 0:01:15]} 34. Na3 {[%emt 0:01:05]} Qa5 {[%emt 0:01:27]} 35. Nc4 {[%emt 0:01:08]} axb3 {[%emt 0:00:15]} 36. Nxa5 {[%emt 1:16:20]} b2 {[%emt 0:41:11]} 37. Kh2 {[%emt 0:00:00]} b1=Q {[%emt 0:00:00]} 38. Nc4 {[%emt 0:00:00]} Qe4 {[%emt 0:00:00]} 39. Nd2 {[%emt 0:00:00]} Qf4+ {[%emt 0:00:00]} 40. Kg1 {[%emt 0:00:00]} Qxd2 {[%emt 0:00:00]} 41. g3 {[%emt 0:00:00]} b3 {[%emt 0:00:00]} 42. Kg2 {[%emt 0:00:00]} Qd5+ {[%emt 0:00:00]} 43. Kh2 {[%emt 0:00:00]} Qf3 {[%emt 0:00:00]} 44. h4 {[%emt 0:00:00]} Qxf2+ {[%emt 0:00:00]} 45. Kh3 {[%emt 0:00:00]} f5 {[%emt 0:00:00]} 46. h5 {[%emt 0:00:00]} Qg1 {[%emt 0:00:00]} 47. g4 {[%emt 0:00:00]} fxg4# {[%emt 0:00:00]} 0-1

[Event "ISR-ch Youth 2019"]
[Site "Jerusalem"]
[Date "2019.04.14"]
[Round "4.1"]
[White "Cohen Revivo, Shoham"]
[Black "Milikow, Yoav"]
[Result "0-1"]
[ECO "C18"]
[WhiteElo "2151"]
[BlackElo "2256"]
[Annotator "NA"]
[PlyCount "128"]
[EventDate "2019.04.11"]
[EventType "swiss"]
[EventCountry "ISR"]
[SourceTitle "playchess.com"]
[Source "ChessBase"]
[SourceQuality "1"]
[TimeControl "5400+30"]

1. e4 {[%emt 0:00:46]} e6 {[%emt 0:00:00]} 2. d4 {[%emt 0:00:06]} d5 {[%emt 0:00:00]} 3. Nc3 {[%emt 0:00:05]} Bb4 {[%emt 0:00:00]} 4. e5 {[%emt 0:00:06]} c5 {[%emt 0:00:00]} 5. a3 {[%emt 0:00:05]} Bxc3+ {[%emt 0:00:00]} 6. bxc3 {[%emt 0:00:21]} Qa5 {[%emt 0:00:20]} 7. Bd2 {[%emt 0:00:07]} Qa4 {[%emt 0:00:11]} 8. Qg4 {[%emt 0:00:17]} Kf8 {[%emt 0:00:09]} 9. Bd3 {[%emt 0:06:02] C18: French: 3 Nc3 Bb4: Main line: 7 h4 and 7 Qg4} (9. h4 Nc6 10. h5 Qxc2 11. Rc1 Qe4+ 12. Qxe4 dxe4 13. Ne2 f5 14. g4 Nge7 15. gxf5 Nxf5 16. Bg2 h6 17. Bxe4 {1-0 (36) Grischuk,A (2771)-Tikkanen,H (2510) Astana 2019}) 9... c4 {[%emt 0:04:10]} 10. Be2 {[%emt 0:00:35]} Qxc2 {[%emt 0:00:45]} 11. Rc1 $146 {[%emt 0:00:07]} ({Predecessor:} 11. Nf3 Nc6 12. O-O Nge7 13. Rfc1 Qg6 14. Qf4 Na5 15. Bd1 Nb3 16. Bxb3 cxb3 {½-½ (35) Polishchuk,A (2197)-Edwards,K (2233) ICCF email 2009}) 11... Qa4 {[%emt 0:02:08]} 12. h4 {[%emt 0:01:32]} Qxa3 {[%emt 0:02:09]} 13. Rh3 {[%emt 0:00:15]} Nc6 {[%emt 0:02:37]} 14. Rg3 {[%emt 0:01:20]} g6 {[%emt 0:01:00]} 15. Nh3 {[%emt 0:01:06]} h5 {[%emt 0:11:58]} 16. Qf3 {[%emt 0:03:43] [#]} Nce7 $1 {[%emt 0:01:44]} 17. Rg5 {[%emt 0:17:00]} Nf5 {[%emt 0:03:14]} 18. Rxf5 {[%emt 0:00:30]} gxf5 {[%emt 0:04:39]} 19. Nf4 {[%emt 0:00:06]} Nh6 {[%emt 0:08:33]} 20. Qxh5 {[%emt 0:00:44]} Ke8 {[%emt 0:01:10]} 21. Qg5 {[%emt 0:17:22]} Qe7 {[%emt 0:02:49]} 22. Qg7 {[%emt 0:00:23]} Qf8 {[%emt 0:00:58]} 23. Qf6 {[%emt 0:00:02]} Rh7 {[%emt 0:01:46]} 24. Nh5 {[%emt 0:09:46]} Ng8 {[%emt 0:01:02]} 25. Qg5 {[%emt 0:03:52]} ({But not} 25. Bg5 $2 Bd7 $19) 25... b5 {[%emt 0:02:07]} 26. Rb1 {[%emt 0:08:06]} Rb8 {[%emt 0:07:17]} 27. Ra1 {[%emt 0:01:04]} a6 {[%emt 0:01:20]} 28. Bc1 {[%emt 0:01:17]} Rh8 {[%emt 0:03:53]} 29. Kf1 {[%emt 0:14:06]} Kd7 {[%emt 0:03:45]} 30. Nf6+ {[%emt 0:06:34]} Kc6 {[%emt 0:02:42]} (30... Nxf6 $19 31. Qxf6 Rh7) 31. h5 {[%emt 0:01:54]} Ne7 {[%emt 0:06:59]} 32. Ba3 {[%emt 0:00:47]} Rb7 {[%emt 0:00:39]} 33. Bd6 {[%emt 0:02:03]} Ra7 {[%emt 0:00:37] [#]} 34. Qc1 $1 {[%emt 0:00:41]} Qd8 {[%emt 0:03:35]} 35. Qa3 {[%emt 0:00:32]} Ng8 {[%emt 0:00:51]} 36. Nxg8 {[%emt 0:01:32]} Rxg8 {[%emt 0:00:31]} 37. Qc5+ {[%emt 0:00:36]} Kb7 {[%emt 0:00:01]} 38. Be7 {[%emt 0:01:02]} Qb6 {[%emt 0:01:05]} 39. Qxb6+ {[%emt 0:00:11]} Kxb6 {[%emt 0:00:01]} 40. Bf6 {[%emt 0:00:06]} Bd7 {[%emt 0:00:54]} 41. h6 {[%emt 0:00:08]} Raa8 {[%emt 0:00:39]} 42. h7 {[%emt 0:03:13]} Rh8 {[%emt 0:00:11]} 43. Bxh8 {[%emt 0:00:42]} Rxh8 {[%emt 0:00:02]} 44. Ke1 {[%emt 0:00:24]} Rxh7 {[%emt 0:00:04]} 45. Kd2 {[%emt 0:00:03]} a5 {[%emt 0:00:21]} 46. Rb1 {[%emt 0:00:45]} f4 {[%emt 0:01:08]} 47. Bf3 {[%emt 0:00:44]} Rh2 {[%emt 0:00:50]} 48. Kc2 {[%emt 0:00:19]} Be8 {[%emt 0:00:23]} 49. Kd2 {[%emt 0:00:02]} Bc6 {[%emt 0:00:59]} 50. Kc2 {[%emt 0:00:29]} Bd7 {[%emt 0:00:13]} 51. Kd2 {[%emt 0:00:05]} Be8 {[%emt 0:00:07]} 52. Ke2 {[%emt 0:00:48]} f6 {[%emt 0:00:49]} 53. exf6 {[%emt 0:00:16]} Rh6 {[%emt 0:00:08]} 54. g4 {[%emt 0:01:22]} Rxf6 {[%emt 0:00:49]} 55. Rg1 {[%emt 0:00:46]} Bg6 {[%emt 0:00:28]} 56. Kd2 {[%emt 0:00:09]} b4 {[%emt 0:00:16]} 57. g5 {[%emt 0:00:42]} Rf7 {[%emt 0:00:44]} 58. Rh1 {[%emt 0:00:25]} b3 {[%emt 0:01:00]} 59. Kc1 {[%emt 0:00:05]} a4 {[%emt 0:00:05]} 60. Rh6 {[%emt 0:00:28]} Rg7 $19 {[%emt 0:00:57]} 61. Bh5 {[%emt 0:01:11]} Bf5 {[%emt 0:00:10]} 62. Kb2 {[%emt 0:00:32]} a3+ {[%emt 0:00:10]} 63. Kxa3 {[%emt 0:00:24]} Ra7+ {[%emt 0:00:02]} 64. Kb2 {[%emt 0:00:34]} Ra2+ {[%emt 0:00:06]} 0-1

[Event "ISR-ch Youth 2019"]
[Site "Jerusalem"]
[Date "2019.04.14"]
[Round "4.2"]
[White "Globus, Or"]
[Black "Solomon, Asif"]
[Result "1-0"]
[ECO "E94"]
[WhiteElo "2346"]
[BlackElo "2126"]
[Annotator "NA"]
[PlyCount "71"]
[EventDate "2019.04.11"]
[EventType "swiss"]
[EventCountry "ISR"]
[SourceTitle "playchess.com"]
[Source "ChessBase"]
[SourceQuality "1"]
[TimeControl "5400+30"]

1. d4 {[%emt 0:00:00]} Nf6 {[%emt 0:00:00]} 2. c4 {[%emt 0:00:00]} g6 {[%emt 0:00:00]} 3. Nc3 {[%emt 0:00:00]} Bg7 {[%emt 0:00:00]} 4. e4 {[%emt 0:00:06]} d6 {[%emt 0:00:00]} 5. Nf3 {[%emt 0:00:06]} O-O {[%emt 0:00:01]} 6. Be2 {[%emt 0:00:02]} e5 {[%emt 0:00:04]} 7. O-O {[%emt 0:00:14]} exd4 {[%emt 0:01:46]} 8. Nxd4 {[%emt 0:00:42]} Re8 {[%emt 0:00:03] LiveBook: 1672 Games} 9. f3 {[%emt 0:01:56]} Nc6 {[%emt 0:00:42]} 10. Be3 {[%emt 0:03:19]} Nh5 {[%emt 0:02:52]} 11. Qd2 {[%emt 0:07:15]} Nf4 {[%emt 0:00:49]} 12. Bxf4 {[%emt 0:04:37]} Nxd4 {[%emt 0:00:24]} 13. Rad1 $146 {[%emt 0:04:05] E94: King's Indian: Classical: 6 Be2 e5 7 0-0: Various Black 7th moves} ({Predecessor:} 13. Bd1 Be6 14. Ba4 Rf8 15. Bg5 f6 16. Bh4 c5 17. Ne2 Bxc4 18. Nxd4 cxd4 19. Rfd1 d3 {½-½ (19) Fedoseev,V (2664)-Kovalev,V (2560) Moscow 2016}) 13... Be6 {[%emt 0:10:10]} 14. b3 {[%emt 0:15:34]} a6 {[%emt 0:23:18]} 15. Be3 {[%emt 0:09:17]} c5 {[%emt 0:08:06]} 16. Bd3 {[%emt 0:01:30]} Qa5 {[%emt 0:04:12]} 17. Ne2 {[%emt 0:05:34]} Qa3 {[%emt 0:11:14]} 18. Nxd4 {[%emt 0:11:57]} cxd4 {[%emt 0:03:23]} 19. Bf2 {[%emt 0:00:26]} a5 {[%emt 0:04:26]} 20. Bb1 {[%emt 0:06:06]} a4 {[%emt 0:00:53]} 21. Bxd4 {[%emt 0:01:57]} axb3 {[%emt 0:04:10]} 22. Bxg7 {[%emt 0:02:10]} bxa2 {[%emt 0:00:34]} 23. Ba1 {[%emt 0:02:05]} Qc5+ {[%emt 0:01:24]} 24. Kh1 {[%emt 0:01:24]} axb1=Q {[%emt 0:00:33]} 25. Rxb1 {[%emt 0:00:05]} Rxa1 {[%emt 0:01:41]} (25... Bxc4 $16 26. Rfd1 b5) 26. Rxa1 {[%emt 0:00:43]} Bxc4 {[%emt 0:00:06]} 27. Rfd1 {[%emt 0:01:54]} Rd8 $18 {[%emt 0:05:17]} 28. Qd4 {[%emt 0:01:31]} Qc6 {[%emt 0:00:28]} 29. Rac1 {[%emt 0:03:24]} b5 {[%emt 0:00:19]} 30. Qf6 {[%emt 0:00:36]} Qc7 {[%emt 0:01:51]} 31. Rd4 {[%emt 0:01:01]} Rd7 {[%emt 0:03:32]} 32. h3 {[%emt 0:04:05]} d5 {[%emt 0:01:08]} 33. Rxd5 {[%emt 0:03:24]} Rxd5 {[%emt 0:01:19]} 34. exd5 {[%emt 0:00:06]} Qc5 {[%emt 0:04:12]} 35. d6 {[%emt 0:02:03]} Qd5 {[%emt 0:00:07]} 36. Re1 {[%emt 0:01:08]} 1-0

[Event "ISR-ch Youth 2019"]
[Site "Jerusalem"]
[Date "2019.04.14"]
[Round "4.3"]
[White "Hoffmann, Yair"]
[Black "Shocron, Alon"]
[Result "1-0"]
[ECO "D02"]
[WhiteElo "2103"]
[BlackElo "1887"]
[Annotator "NA"]
[PlyCount "91"]
[EventDate "2019.04.11"]
[EventType "swiss"]
[EventCountry "ISR"]
[SourceTitle "playchess.com"]
[Source "ChessBase"]
[SourceQuality "1"]
[TimeControl "5400+30"]

1. d4 {[%emt 0:00:00]} Nf6 {[%emt 0:00:00]} 2. Nf3 {[%emt 0:00:00]} e6 {[%emt 0:00:00]} 3. Bf4 {[%emt 0:00:02]} b6 {[%emt 0:00:40]} 4. e3 {[%emt 0:00:57]} Bb7 {[%emt 0:00:28]} 5. Nbd2 $11 {[%emt 0:00:38]} d5 {[%emt 0:02:09]} 6. Bd3 {[%emt 0:01:27]} Bd6 {[%emt 0:01:52]} 7. Ne5 {[%emt 0:01:18]} O-O {[%emt 0:02:12]} 8. Bg3 {[%emt 0:08:20]} c5 {[%emt 0:08:02]} 9. c3 {[%emt 0:00:14]} Nc6 {[%emt 0:00:50]} 10. f4 {[%emt 0:01:02]} Ne8 {[%emt 0:10:55]} 11. O-O {[%emt 0:08:35]} f5 {[%emt 0:05:36]} 12. Ndf3 {[%emt 0:05:06]} c4 {[%emt 0:02:45]} 13. Bc2 {[%emt 0:00:54]} Nf6 {[%emt 0:03:28]} 14. Bh4 {[%emt 0:01:16]} Ne7 {[%emt 0:06:28]} 15. h3 {[%emt 0:03:15]} Qe8 {[%emt 0:02:13]} 16. g4 {[%emt 0:03:29]} Ne4 {[%emt 0:00:47]} 17. Kh2 {[%emt 0:06:46]} Ng6 {[%emt 0:04:07]} 18. Nxg6 {[%emt 0:03:19]} Qxg6 {[%emt 0:00:10]} 19. Bxe4 {[%emt 0:01:08]} fxe4 {[%emt 0:05:15]} 20. Ne5 {[%emt 0:02:59]} Bxe5 {[%emt 0:00:05]} 21. dxe5 {[%emt 0:00:07]} Bc6 {[%emt 0:00:34]} 22. Qd2 {[%emt 0:02:36]} Qf7 {[%emt 0:00:38]} 23. Rg1 {[%emt 0:03:37]} Qb7 {[%emt 0:03:18]} 24. Raf1 {[%emt 0:01:12]} Rf7 {[%emt 0:02:24]} 25. Kh1 {[%emt 0:03:17]} Bd7 {[%emt 0:00:39]} 26. Be1 {[%emt 0:04:47]} b5 {[%emt 0:00:31]} 27. h4 {[%emt 0:00:51]} a5 {[%emt 0:01:01]} 28. h5 {[%emt 0:01:43]} Rb8 {[%emt 0:00:32]} 29. Qh2 {[%emt 0:01:42]} b4 {[%emt 0:02:10]} 30. h6 {[%emt 0:04:03]} g6 {[%emt 0:00:23]} 31. Rf2 {[%emt 0:02:43]} Rc8 {[%emt 0:07:36]} 32. Rd2 {[%emt 0:06:04]} bxc3 {[%emt 0:01:09]} 33. bxc3 {[%emt 0:00:07]} Rb8 {[%emt 0:00:40]} 34. Bh4 {[%emt 0:00:15]} Qa7 {[%emt 0:03:56]} 35. Qg3 {[%emt 0:02:02]} Bc8 {[%emt 0:01:49]} 36. Rf1 {[%emt 0:02:50]} Qc7 {[%emt 0:01:43]} 37. Rdf2 {[%emt 0:01:41]} Kf8 {[%emt 0:00:53]} 38. Kh2 {[%emt 0:01:53]} a4 {[%emt 0:01:46]} 39. Bf6 {[%emt 0:03:55]} a3 {[%emt 0:00:41]} 40. f5 {[%emt 0:01:12]} exf5 {[%emt 0:00:09]} 41. gxf5 {[%emt 0:00:05]} Rxf6 {[%emt 0:06:24]} 42. fxg6 {[%emt 0:04:36]} Rb2 {[%emt 0:00:35]} 43. g7+ {[%emt 0:00:22]} Kg8 {[%emt 0:00:20]} 44. exf6 {[%emt 0:00:07]} Qf7 {[%emt 0:01:22]} 45. Rxb2 {[%emt 0:02:16]} axb2 {[%emt 0:00:04]} 46. Qe5 {[%emt 0:00:10]} 1-0

[Event "ISR-ch Youth 2019"]
[Site "Jerusalem"]
[Date "2019.04.14"]
[Round "4.4"]
[White "Musyuk, Lior"]
[Black "Mizrahi, Ido"]
[Result "0-1"]
[ECO "D02"]
[WhiteElo "2231"]
[BlackElo "1957"]
[Annotator "NA"]
[PlyCount "88"]
[EventDate "2019.04.11"]
[EventType "swiss"]
[EventCountry "ISR"]
[SourceTitle "playchess.com"]
[Source "ChessBase"]
[SourceQuality "1"]
[TimeControl "5400+30"]

1. d4 {[%emt 0:00:00]} Nf6 {[%emt 0:01:19]} 2. Bf4 {[%emt 0:00:00]} d5 {[%emt 0:01:49]} 3. e3 {[%emt 0:00:58]} c5 {[%emt 0:00:25]} 4. Nf3 {[%emt 0:01:00]} Nc6 {[%emt 0:00:04]} 5. c3 {[%emt 0:00:59]} Qb6 {[%emt 0:00:38]} 6. b3 {[%emt 0:01:02] D02: 1 d4 d5 2 Nf3 sidelines, including 2...Nf6 3 g3 and 2...Nf6 3 Bf4} (6. Qb3 c4 7. Qc2 Bf5 8. Qc1 e6 9. Nbd2 Qd8 10. h3 h6 11. Be2 Be7 12. O-O O-O 13. Bd1 b5 14. Bc2 Bxc2 15. Qxc2 Bd6 16. Bxd6 Qxd6 17. e4 dxe4 18. Nxe4 Nxe4 19. Qxe4 Qd5 20. Qxd5 exd5 {1-0 (51) Nisipeanu,L (2674)-Parligras,M (2645) Bucharest 2018}) 6... Bf5 {[%emt 0:02:21]} 7. Bd3 {[%emt 0:04:28]} Bxd3 {[%emt 0:01:15]} 8. Qxd3 {[%emt 0:00:01]} e6 {[%emt 0:01:03]} 9. Nbd2 {[%emt 0:05:41]} Rc8 {[%emt 0:06:35]} 10. h3 {[%emt 0:04:26]} Be7 {[%emt 0:02:52]} 11. O-O {[%emt 0:03:59]} O-O {[%emt 0:03:57]} 12. Rfb1 $146 {[%emt 0:09:49]} ({Predecessor:} 12. dxc5 Qxc5 13. b4 Qb6 {½-½ (39) Marek,M (2358)-Watson,J (2203) Burlingame 2019}) 12... Rfd8 {[%emt 0:06:44]} 13. a4 {[%emt 0:10:43]} cxd4 {[%emt 0:10:28]} 14. exd4 {[%emt 0:01:21]} a5 {[%emt 0:05:25]} 15. Re1 {[%emt 0:10:48]} h6 {[%emt 0:06:35]} 16. g4 {[%emt 0:03:26]} Nh7 {[%emt 0:18:06]} 17. h4 {[%emt 0:07:08]} g5 {[%emt 0:04:28]} 18. hxg5 {[%emt 0:04:33]} hxg5 {[%emt 0:00:18]} 19. Be5 {[%emt 0:01:39]} Nf8 {[%emt 0:08:29]} 20. Kg2 {[%emt 0:06:39]} f6 {[%emt 0:02:09]} 21. Bh2 {[%emt 0:05:46]} Bd6 {[%emt 0:02:51]} 22. Bxd6 {[%emt 0:02:27]} Rxd6 {[%emt 0:00:03]} 23. Nf1 {[%emt 0:00:49]} Ne7 {[%emt 0:01:08]} 24. Ng3 {[%emt 0:00:40]} Neg6 {[%emt 0:00:40]} 25. Nh5 {[%emt 0:00:18]} Qd8 {[%emt 0:00:54]} 26. Rh1 {[%emt 0:02:14]} Rd7 {[%emt 0:00:35]} 27. Qe3 {[%emt 0:02:14]} Rf7 {[%emt 0:01:59]} 28. Rh2 {[%emt 0:00:57]} Qc7 {[%emt 0:01:48]} 29. Rc1 {[%emt 0:01:37]} Nf4+ {[%emt 0:03:17]} 30. Nxf4 {[%emt 0:00:59]} Qxf4 {[%emt 0:00:08]} 31. Qxf4 {[%emt 0:00:32]} gxf4 {[%emt 0:00:02]} 32. Rh6 {[%emt 0:03:13]} Kg7 {[%emt 0:01:45]} 33. Rh3 {[%emt 0:02:36]} Rfc7 {[%emt 0:01:01]} 34. Nh4 {[%emt 0:00:44]} Nh7 {[%emt 0:00:27]} 35. Rf3 {[%emt 0:01:35]} Ng5 {[%emt 0:00:30]} 36. Rxf4 {[%emt 0:00:24]} Rxc3 {[%emt 0:00:21]} 37. Rb1 {[%emt 0:00:23]} Rh8 {[%emt 0:00:33]} 38. Rh1 {[%emt 0:00:39]} Rxb3 {[%emt 0:00:45]} 39. f3 {[%emt 0:00:22]} Rc8 {[%emt 0:01:45]} 40. Kg3 {[%emt 0:00:16]} Ne4+ {[%emt 0:00:55]} 41. Kh2 {[%emt 0:00:13]} Rc2+ {[%emt 0:00:06]} 42. Ng2 {[%emt 0:00:05]} Nf2 {[%emt 0:01:16]} 43. Rf1 {[%emt 0:00:06]} Nd3 {[%emt 0:00:11]} 44. Kg3 {[%emt 0:00:08]} Rxg2+ {[%emt 0:00:16]} 0-1